bitfinex/quotes_ETHUSD_20240910
["timestamp","ask_amount","ask_price","bid_price","bid_amount"]
[1725937994270,1.40833147,2345.4,2344.9,2.3488]
[1725937994603,1.40833147,2345.4,2345.0,0.08527505]
[1725937994802,1.32157626,2345.4,2345.0,0.08527505]
[1725937995009,0.08380723,2345.3,2345.0,0.08527505]
[1725937995193,0.08380723,2345.3,2344.9,2.3488]
[1725937995406,0.08380723,2345.3,2344.9,2.92565892]
[1725937995596,1.32157626,2345.4,2344.9,2.92565892]
[1725937999786,1.32157626,2345.6,2344.9,2.92565892]
[1725938000108,0.08411219,2345.5,2345.1,2.3846]
[1725938000404,0.08411219,2345.5,2345.1,2.46987206]
[1725938000607,0.08411219,2345.5,2345.2,0.30198721]
[1725938001407,0.08411219,2345.5,2345.1,2.3846]
[1725938002039,1.32157626,2345.4,2345.1,2.3846]
[1725938002394,1.32157626,2345.4,2344.9,2.88058376]
[1725938004537,1.32157626,2345.4,2344.9,2.389]
[1725938004895,0.08134048,2345.3,2344.9,2.389]
[1725938006422,0.08134048,2345.3,2345.1,2.358]
[1725938006736,1.32157626,2345.6,2345.1,2.358]
[1725938007131,1.32157626,2345.2,2345.1,2.358]
[1725938007332,1.32157626,2345.2,2344.9,2.358]
[1725938007694,0.10510704,2345.5,2344.9,2.358]
[1725938007695,1.32157626,2345.4,2344.9,2.358]
[1725938009337,1.32157626,2345.4,2345.0,0.4358]
[1725938009641,1.32157626,2345.4,2344.9,2.358]
[1725938013154,0.07897774,2345.3,2344.9,2.358]
[1725938013644,1.32157626,2345.4,2344.9,2.358]
[1725938013802,0.07896996,2345.2,2344.9,2.358]
[1725938014148,1.32157626,2345.4,2344.9,2.358]
[1725938014439,0.07897446,2345.3,2344.9,2.358]
[1725938014648,1.32157626,2345.4,2344.9,2.358]
[1725938014811,0.07896996,2345.2,2344.9,2.358]
[1725938014999,1.32157626,2345.4,2344.9,2.358]
[1725938015202,0.07897446,2345.3,2344.9,2.358]
[1725938015423,1.32157626,2345.4,2344.9,2.358]
[1725938015640,0.0789726,2345.3,2344.9,2.358]
[1725938015948,1.32157626,2345.4,2344.9,2.358]
[1725938016302,0.0789726,2345.3,2344.9,2.358]
[1725938016506,1.32157626,2345.4,2344.9,2.358]
[1725938016742,0.0789681,2345.2,2344.9,2.358]
[1725938016904,0.0789726,2345.3,2344.9,2.358]
[1725938017243,1.32157626,2345.4,2344.9,2.358]
[1725938017398,0.0789681,2345.2,2344.9,2.358]
[1725938017602,1.32157626,2345.4,2344.9,2.358]
[1725938017802,1.70621459,2345.4,2344.9,2.358]
[1725938018042,0.0789726,2345.3,2344.9,2.358]
[1725938018424,1.70621459,2345.4,2344.9,2.358]
[1725938018830,0.07897166,2345.3,2344.9,2.358]
[1725938019203,1.70621459,2345.4,2344.9,2.358]
[1725938019604,0.07897166,2345.3,2344.9,2.358]
[1725938019844,0.07897166,2345.3,2345.0,0.43705194]
[1725938020050,1.32157626,2345.4,2344.9,2.358]
[1725938020234,1.32157626,2345.4,2345.0,0.43705758]
[1725938020549,1.32157626,2345.4,2345.1,0.43705758]
[1725938020705,0.0789885,2345.3,2344.9,2.358]
[1725938021039,1.32157626,2345.4,2345.0,0.43705812]
[1725938021243,1.32157626,2345.4,2345.1,0.43705812]
[1725938021443,1.32157626,2345.4,2344.9,2.358]
[1725938021660,1.32157626,2345.4,2345.0,0.43707019]
[1725938021810,0.0789885,2345.3,2345.1,0.43707019]
[1725938022011,0.0789885,2345.3,2344.9,2.358]
[1725938022211,1.32157626,2345.4,2345.0,0.43705652]
[1725938022421,1.32157626,2345.4,2345.1,0.43705652]
[1725938022635,0.0789885,2345.3,2345.2,2.3365]
[1725938022907,1.32157626,2345.6,2345.2,2.3365]
[1725938023135,0.07895299,2345.3,2345.2,2.3365]
[1725938023338,1.70283389,2345.6,2345.2,2.3365]
[1725938023507,0.10510704,2345.5,2344.9,0.66720987]
[1725938023713,1.32157626,2345.4,2345.0,2.79473698]
[1725938023917,1.50564079,2345.4,2345.1,0.43703698]
[1725938024113,1.92286063,2345.4,2345.0,2.3577]
[1725938026854,1.40053375,2345.4,2345.1,0.43707839]
[1725938027156,1.50564079,2345.4,2345.0,2.3577]
[1725938029362,1.32157626,2345.3,2344.8,4.2872]
[1725938029662,0.18406453,2345.4,2344.8,3.98839748]
[1725938029847,0.10510704,2345.4,2344.9,1.8013509]
[1725938030011,0.10510704,2345.4,2344.8,5.05600482]
[1725938030211,1.32157626,2344.9,2344.8,2.76880482]
[1725938030416,1.4266833,2344.9,2344.4,2.486]
[1725938031215,0.10510704,2344.9,2344.4,2.486]
[1725938031625,0.07889342,2344.8,2344.4,2.486]
[1725938032063,3.78517626,2345.0,2344.4,2.486]
[1725938032276,4.16369389,2345.0,2344.4,2.486]
[1725938033042,0.0785247,2344.9,2344.4,2.486]
[1725938033369,4.16369389,2345.0,2344.4,2.486]
[1725938033734,0.07851927,2344.9,2344.4,4.18838667]
[1725938033929,3.78517626,2345.0,2344.4,2.486]
[1725938034131,0.07852069,2344.8,2344.4,4.191412]
[1725938034372,3.78517626,2345.0,2344.4,2.486]
[1725938034579,3.78517626,2345.0,2344.4,4.19171653]
[1725938034736,0.07852519,2344.9,2344.4,2.486]
[1725938034937,3.78517626,2345.0,2344.4,2.486]
[1725938035165,0.07852069,2344.8,2344.4,2.486]
[1725938035381,0.07856071,2344.9,2344.4,2.486]
[1725938035580,0.07856071,2344.9,2344.4,4.19194095]
[1725938035875,2.4636,2345.0,2344.4,4.19194471]
[1725938036082,2.56870704,2345.0,2344.4,4.19188747]
[1725938036276,0.07856071,2344.9,2344.5,1.13739195]
[1725938036436,0.07856071,2344.9,2344.7,2.2796]
[1725938036747,2.4359,2345.2,2344.7,2.2796]
[1725938037250,0.07855787,2345.1,2344.7,2.2796]
[1725938037580,0.07855787,2345.1,2344.7,2.65183985]
[1725938037933,3.7810833,2345.4,2344.7,4.35792516]
[1725938038135,0.07855337,2345.0,2344.7,2.65183985]
[1725938038568,3.7810833,2345.4,2344.7,2.65183985]
[1725938038943,0.07856686,2345.3,2344.7,2.65183985]
[1725938039137,0.07856686,2345.3,2344.8,1.54711917]
[1725938039350,0.07856686,2345.3,2344.8,0.40946383]
[1725938039989,0.07856686,2345.3,2345.0,2.2796]
[1725938040551,1.4266833,2345.5,2345.0,2.2796]
[1725938040858,0.07855978,2345.2,2344.8,0.40946383]
[1725938041062,1.4266833,2345.5,2344.9,3.39444768]
[1725938041392,0.07855528,2345.1,2344.9,0.55]
[1725938041556,1.4266833,2345.5,2344.9,0.55]
[1725938041755,0.07855078,2345.0,2344.9,0.55]
[1725938042058,1.4266833,2345.5,2344.9,3.39447813]
[1725938042267,1.4266833,2345.5,2344.9,0.55]
[1725938042557,0.07856877,2345.4,2344.9,0.55]
[1725938045907,1.32157626,2345.3,2344.9,0.55]
[1725938046193,3.89784053,2345.3,2344.9,0.55]
[1725938046700,3.61887626,2345.5,2344.9,1.20006021]
[1725938046913,0.07865293,2345.2,2345.0,1.13785298]
[1725938047118,3.61887626,2345.5,2344.9,1.20006021]
[1725938047302,0.07865781,2345.1,2345.0,1.13781912]
[1725938047502,3.61887626,2345.5,2345.0,1.72944328]
[1725938047686,3.61887626,2345.5,2345.0,0.59162416]
[1725938048096,0.07867131,2345.4,2345.0,0.59162416]
[1725938048299,0.07867131,2345.4,2345.1,2.4752]
[1725938049397,0.07867131,2345.4,2345.2,0.08527464]
[1725938049583,0.07867131,2345.4,2345.2,0.60048452]
[1725938049785,3.7568833,2345.9,2345.3,0.08526671]
[1725938050169,3.7568833,2345.9,2345.2,0.51520988]
[1725938051174,3.7568833,2345.9,2345.3,0.08526518]
[1725938052277,2.43530704,2345.9,2345.3,0.08526518]
[1725938052481,5.11018405,2346.0,2345.4,2.8286]
[1725938052823,2.4638,2346.1,2345.5,0.5766436]
[1725938053033,2.56890704,2346.1,2345.5,0.5766436]
[1725938053219,1.4266833,2346.2,2345.6,2.2786]
[1725938053377,1.4266833,2346.2,2345.7,0.08525112]
[1725938053778,1.4266833,2346.2,2345.6,2.2786]
[1725938054006,1.4266833,2346.2,2345.7,0.27699865]
[1725938054594,1.32157626,2346.2,2345.7,0.27699865]
[1725938055102,2.3248,2346.7,2346.0,2.3485]
[1725938055294,2.42990704,2347.0,2346.2,4.3485]
[1725938055591,2.3673,2347.8,2346.8,2.0]
[1725938055795,0.45826677,2348.6,2347.3,1.32157626]
[1725938055796,2.3673,2348.1,2347.3,1.32157626]
[1725938056050,0.10510704,2348.0,2347.4,0.08518682]
[1725938056394,0.07221409,2347.9,2347.4,2.469]
[1725938056595,1.32157626,2347.8,2347.2,2.0]
[1725938056839,0.10510704,2347.7,2347.2,2.0]
[1725938058463,0.10510704,2347.8,2347.2,2.0]
[1725938058856,0.07267857,2347.7,2347.2,2.0]
[1725938059295,0.40141311,2347.8,2347.2,2.0]
[1725938059594,0.07267671,2347.7,2347.2,2.0]
[1725938059969,0.40141311,2347.8,2347.2,2.0]
[1725938060297,0.07267222,2347.6,2347.2,2.0]
[1725938060594,0.40141311,2347.8,2347.2,2.4469]
[1725938061187,0.07267671,2347.7,2347.2,2.4469]
[1725938061390,0.10510704,2347.8,2347.2,2.4469]
[1725938061547,0.07266741,2347.6,2347.2,2.4469]
[1725938061911,0.10510704,2347.8,2347.3,0.49159]
[1725938062065,0.10510704,2347.8,2347.2,2.0]
[1725938062691,0.07267097,2347.7,2347.2,2.0]
[1725938063104,5.22525367,2348.1,2347.3,0.08519242]
[1725938063271,2.3673,2348.1,2347.3,0.63519242]
[1725938063600,2.3673,2348.1,2347.4,0.56351924]
[1725938063896,0.17822354,2348.0,2347.5,0.08518539]
[1725938064395,0.0731165,2348.0,2347.5,0.08518539]
[1725938064899,0.0731165,2348.0,2347.4,0.08518545]
[1725938066789,0.17822354,2348.0,2347.4,0.08518545]
[1725938067014,0.17822354,2348.0,2347.3,0.55]
[1725938067183,0.17822354,2348.0,2347.4,0.255]
[1725938067686,0.17822354,2348.0,2347.4,0.34018554]
[1725938068190,0.17822354,2348.0,2347.4,0.255]
[1725938069908,0.17822354,2348.0,2347.4,0.3401856]
[1725938070936,0.17822354,2348.0,2347.4,0.255]
[1725938073550,0.17822354,2348.0,2347.4,0.34018563]
[1725938074043,0.0731165,2348.0,2347.5,2.4195]
[1725938074223,0.0731165,2348.0,2347.6,0.27596856]
[1725938075655,0.0705095,2347.9,2347.6,0.27596856]
[1725938076001,0.10510704,2348.3,2347.6,0.27596856]
[1725938076309,0.07050501,2347.8,2347.6,0.27596856]
[1725938076502,0.07049959,2347.7,2347.6,0.27596856]
[1725938076704,0.07049959,2347.7,2347.5,2.4195]
[1725938076962,0.10510704,2348.1,2347.5,2.4195]
[1725938077318,0.07049509,2347.6,2347.5,2.4195]
[1725938077497,0.10510704,2348.1,2347.5,2.4195]
[1725938077704,0.10510704,2348.1,2347.5,3.02496856]
[1725938077903,0.06815788,2348.0,2347.5,3.02496856]
[1725938078846,0.06815339,2347.9,2347.5,3.02496856]
[1725938079239,0.10510704,2348.2,2347.5,3.02496856]
[1725938079729,0.06816237,2348.1,2347.5,3.02496856]
[1725938080760,0.10510704,2348.0,2347.5,3.02496856]
[1725938080963,0.06815788,2348.0,2347.6,0.31101542]
[1725938083798,0.10510704,2348.3,2347.6,0.31101542]
[1725938084082,0.06824651,2347.9,2347.6,0.31101542]
[1725938084255,0.10510704,2348.3,2347.7,0.08518397]
[1725938084479,0.06824202,2347.8,2347.6,0.31101542]
[1725938084692,0.10510704,2348.3,2347.6,0.31101542]
[1725938084856,0.06823753,2347.7,2347.6,0.31101542]
[1725938085183,0.10510704,2348.3,2347.6,0.31101542]
[1725938085388,0.0683276,2347.7,2347.6,0.31101542]
[1725938085552,0.10510704,2348.1,2347.6,0.31101542]
[1725938085753,0.0683276,2347.7,2347.6,0.31101542]
[1725938085956,0.10510704,2348.1,2347.6,0.31101542]
[1725938086150,0.0683276,2347.7,2347.6,0.31101542]
[1725938086396,0.10510704,2348.1,2347.6,0.31101542]
[1725938086590,0.0683276,2347.7,2347.6,0.31101542]
[1725938086756,0.10510704,2348.1,2347.6,0.31101542]
[1725938086956,0.0683276,2347.7,2347.6,0.31101542]
[1725938087153,0.10510704,2348.1,2347.6,0.31101542]
[1725938087381,0.10510704,2348.1,2347.7,0.43629901]
[1725938087586,0.10510704,2348.1,2347.8,0.43629901]
[1725938087891,0.10510704,2348.1,2347.9,0.43629901]
[1725938088065,0.06834107,2348.0,2347.6,0.31101542]
[1725938088270,0.06834107,2348.0,2347.7,0.43629701]
[1725938088602,0.06834107,2348.0,2347.8,0.43629701]
[1725938088775,0.06834107,2348.0,2347.9,0.43629701]
[1725938090074,0.06834107,2348.0,2347.9,1.10278952]
[1725938091509,0.10510704,2348.3,2347.9,1.10278952]
[1725938091800,2.39500704,2348.6,2348.0,0.66641158]
[1725938092030,0.06835125,2348.2,2348.1,0.66641158]
[1725938092297,1.31867158,2348.5,2348.1,0.66641158]
[1725938092463,1.31867158,2348.5,2348.2,0.66641158]
[1725938092661,1.31867158,2348.5,2347.8,2.3793]
[1725938092662,0.06855705,2348.4,2347.8,2.3793]
[1725938092855,0.06855705,2348.4,2347.9,1.64036888]
[1725938093101,0.06855705,2348.4,2348.0,0.66643888]
[1725938093279,0.06855705,2348.4,2348.1,0.66643888]
[1725938093473,0.06855705,2348.4,2347.9,0.97393]
[1725938093474,0.06855705,2348.4,2348.2,0.66643888]
[1725938093690,0.17366409,2348.4,2347.9,0.97393]
[1725938093867,0.17366409,2348.4,2348.0,1.00174961]
[1725938094066,0.17366409,2348.4,2348.1,0.66642661]
[1725938094365,0.17366409,2348.4,2348.2,0.66642661]
[1725938094556,0.17366409,2348.4,2348.0,0.335323]
[1725938094760,0.17366409,2348.4,2348.1,0.66642681]
[1725938094961,0.17366409,2348.4,2348.2,0.66642681]
[1725938095257,0.17366409,2348.4,2348.0,0.335323]
[1725938095457,0.17366409,2348.4,2348.1,0.66643611]
[1725938095695,0.17366409,2348.4,2348.0,0.335323]
[1725938095912,2.4776,2348.2,2347.9,0.97393]
[1725938096059,2.58270704,2348.2,2348.0,0.66647307]
[1725938096260,2.58270704,2348.2,2347.9,0.97393]
[1725938096899,2.58270704,2348.2,2348.0,0.66646428]
[1725938097102,2.58270704,2348.2,2347.6,2.61451542]
[1725938097306,2.58270704,2348.2,2347.7,0.66647991]
[1725938097500,2.58270704,2348.2,2347.6,2.61451542]
[1725938097501,2.58270704,2348.2,2347.8,0.66647991]
[1725938097687,1.31867158,2348.1,2347.6,2.61451542]
[1725938097873,1.31867158,2348.1,2347.7,1.12796337]
[1725938097874,1.42377862,2348.1,2347.7,1.12796337]
[1725938098077,1.42377862,2348.1,2347.8,0.66651183]
[1725938098297,1.42377862,2348.1,2347.7,0.46145154]
[1725938099811,1.42377862,2348.1,2347.6,0.31101542]
[1725938100107,2.2703,2348.0,2347.6,0.31101542]
[1725938100311,1.31867158,2347.7,2347.4,8.25279845]
[1725938100494,2.466,2347.4,2347.1,8.25279845]
[1725938100701,2.466,2347.4,2347.0,3.60400751]
[1725938100702,2.466,2347.4,2347.2,1.13444792]
[1725938100903,2.466,2348.0,2347.3,1.13441448]
[1725938101209,1.48988511,2347.9,2347.4,2.83579854]
[1725938101409,1.42377862,2347.9,2347.5,2.83579854]
[1725938101607,1.42377862,2347.9,2347.4,0.89279845]
[1725938101814,1.42377862,2347.9,2347.5,2.8398893]
[1725938101985,1.42377862,2347.9,2347.6,1.13589027]
[1725938102169,1.42377862,2347.9,2347.4,0.89279845]
[1725938102494,1.42377862,2347.9,2347.5,1.13594541]
[1725938102810,1.42377862,2347.9,2347.4,0.89279845]
[1725938102995,1.42377862,2347.9,2347.3,1.77341911]
[1725938102996,1.42377862,2347.9,2347.5,1.13589314]
[1725938103198,1.42377862,2347.9,2347.3,1.33120017]
[1725938103509,1.42377862,2347.9,2347.4,3.10643859]
[1725938103683,1.42377862,2347.9,2347.5,1.13592673]
[1725938103885,1.42377862,2347.9,2347.4,0.26662176]
[1725938104209,0.10510704,2347.9,2347.4,0.26662176]
[1725938104715,0.066102,2347.8,2347.5,6.12639541]
[1725938104912,0.066102,2347.8,2347.6,3.46360508]
[1725938105075,0.10510704,2348.0,2347.6,0.63930172]
[1725938105485,0.0661052,2347.9,2347.7,1.12961546]
[1725938105701,0.0661052,2347.9,2347.6,0.63930172]
[1725938105887,0.0661052,2347.9,2347.7,1.51526072]
[1725938106086,0.0661052,2347.9,2347.7,0.38562002]
[1725938106812,2.2783,2348.2,2347.7,0.38562002]
[1725938106813,0.10510704,2348.1,2347.7,0.38562002]
[1725938107109,0.06610071,2347.8,2347.5,0.89279845]
[1725938107323,0.10510704,2348.1,2347.6,2.82440066]
[1725938107525,0.10510704,2348.1,2347.7,1.12976026]
[1725938107677,0.06610969,2348.0,2347.5,0.89279845]
[1725938107877,0.06610969,2348.0,2347.6,2.8247057]
[1725938108078,0.10510704,2348.1,2347.7,1.12988228]
[1725938108376,5.13623883,2348.2,2347.7,1.12988228]
[1725938108377,2.2783,2348.2,2347.7,0.08518532]
[1725938108702,0.06610969,2348.0,2347.7,2.43578532]
[1725938109015,0.0661052,2347.9,2347.7,2.43578532]
[1725938109167,2.4927,2348.4,2347.8,1.12978943]
[1725938109370,2.4927,2348.4,2347.8,0.51902875]
[1725938109614,0.06612315,2348.3,2347.8,0.51902875]
[1725938110014,0.06612315,2348.3,2347.9,2.90903906]
[1725938110220,2.4147,2348.6,2347.9,2.90903906]
[1725938110221,2.4147,2348.6,2348.0,3.37365054]
[1725938110516,0.44528456,2348.3,2348.0,0.55]
[1725938111689,0.44528456,2348.3,2348.1,1.12938368]
[1725938111883,0.44528456,2348.3,2348.1,0.25721821]
[1725938112421,0.44528456,2348.3,2348.1,2.62558275]
[1725938112718,0.10510704,2348.7,2348.1,2.62558275]
[1725938113085,0.06666974,2348.6,2348.1,2.62558275]
[1725938113509,2.4859,2348.8,2348.2,3.37308619]
[1725938113721,2.4859,2348.8,2348.3,0.08515696]
[1725938113889,0.06667422,2348.7,2348.3,0.08515696]
[1725938114282,0.10510704,2348.9,2348.2,1.62764848]
[1725938114844,0.06667871,2348.8,2348.2,1.62764848]
[1725938115074,0.10510704,2348.9,2348.2,1.62764848]
[1725938115210,0.10510704,2348.9,2348.3,0.41680667]
[1725938115411,0.06667871,2348.8,2348.3,0.41680667]
[1725938115606,0.06667871,2348.8,2348.3,0.50196361]
[1725938117112,0.06667871,2348.8,2348.3,0.41680667]
[1725938118449,0.06667871,2348.8,2348.3,0.50196359]
[1725938119219,0.06667871,2348.8,2348.4,2.2949]
[1725938119418,0.06667871,2348.8,2348.4,2.62958636]
[1725938120143,0.06667871,2348.8,2348.5,0.08515329]
[1725938120318,2.53050704,2349.2,2348.5,0.08515329]
[1725938120518,0.06687843,2349.1,2348.5,0.08515329]
[1725938120720,0.06687843,2349.1,2348.5,0.59830792]
[1725938125756,0.06687843,2349.1,2348.7,2.4155]
[1725938125965,0.10510704,2349.5,2348.7,5.4155]
[1725938126166,1.42226806,2349.5,2348.8,0.55]
[1725938126327,0.06420777,2349.4,2348.8,0.55]
[1725938126521,0.06420777,2349.4,2348.9,0.59655]
[1725938127155,0.06420777,2349.4,2348.9,0.68168499]
[1725938127461,0.06420777,2349.4,2348.9,0.59655]
[1725938127670,1.42226806,2349.3,2348.9,0.59655]
[1725938127869,1.31716102,2349.1,2348.7,2.4155]
[1725938128021,1.31716102,2348.9,2348.5,10.24205463]
[1725938128226,0.10510704,2349.0,2348.5,2.88205463]
[1725938128424,0.0644709,2348.8,2348.6,0.08515069]
[1725938128765,0.10510704,2349.1,2348.6,0.41533986]
[1725938128766,0.06446642,2348.7,2348.6,0.41533986]
[1725938129061,0.10510704,2349.1,2348.6,0.41533986]
[1725938129261,0.06446642,2348.7,2348.6,0.41533986]
[1725938129418,2.37100704,2349.2,2348.6,0.96533986]
[1725938129627,0.06446642,2348.7,2348.6,0.96533986]
[1725938129831,2.37100704,2349.2,2348.6,0.96533986]
[1725938130032,2.37100704,2349.2,2348.7,0.38473945]
[1725938131576,2.85531812,2349.3,2348.7,0.38473945]
[1725938131772,2.96042516,2349.3,2348.7,0.38473945]
[1725938132170,0.10510704,2349.2,2348.7,0.38473945]
[1725938132545,2.96042516,2349.3,2348.7,0.38473945]
[1725938132946,0.06448883,2349.2,2348.7,0.38473945]
[1725938133151,0.16959587,2349.2,2348.7,0.38473945]
[1725938133758,0.06448883,2349.2,2348.7,0.38473945]
[1725938137633,0.16959587,2349.2,2348.7,0.38473945]
[1725938138431,0.06448883,2349.2,2348.7,0.46988171]
[1725938138634,0.06448883,2349.2,2348.8,2.2637]
[1725938138870,2.96042516,2349.3,2348.8,2.59205817]
[1725938139169,0.06458242,2349.2,2348.8,2.59205817]
[1725938139379,2.96042516,2349.3,2348.8,2.59205817]
[1725938139671,0.06457794,2349.1,2348.8,2.59205817]
[1725938139869,0.06468356,2349.2,2348.8,2.59205817]
[1725938140068,0.10510704,2349.3,2348.9,0.26772004]
[1725938140069,0.06445509,2349.0,2348.9,0.26772004]
[1725938140373,0.06455623,2349.0,2348.9,0.26772004]
[1725938140575,0.10510704,2349.3,2348.9,0.26772004]
[1725938140736,0.06455623,2349.0,2348.9,0.26772004]
[1725938140938,0.10510704,2349.3,2348.9,0.26772004]
[1725938141169,0.06446406,2349.2,2348.9,0.26772004]
[1725938141379,0.10510704,2349.3,2348.9,0.26772004]
[1725938141558,0.06445957,2349.1,2348.9,0.26772004]
[1725938141765,0.10510704,2349.3,2348.9,0.26772004]
[1725938141983,0.06455623,2349.0,2348.9,0.26772004]
[1725938142136,0.10510704,2349.3,2348.9,0.26772004]
[1725938142337,0.10510704,2349.3,2348.8,2.2637]
[1725938142338,0.0645652,2349.2,2348.8,2.2637]
[1725938142546,0.10510704,2349.3,2348.8,2.2637]
[1725938142771,0.06447149,2349.2,2348.8,2.2637]
[1725938143077,0.10510704,2349.3,2348.8,2.2637]
[1725938143288,2.85531812,2348.9,2348.5,2.2707]
[1725938143437,0.10510704,2348.8,2348.5,2.2707]
[1725938143635,0.16954376,2348.8,2348.5,2.2707]
[1725938143835,0.10510704,2348.8,2348.5,2.2707]
[1725938145182,5.20061812,2349.3,2348.6,0.0851489]
[1725938145342,5.20061812,2349.3,2348.5,2.49777]
[1725938145343,0.06438934,2348.7,2348.5,2.49777]
[1725938145855,0.10510704,2349.2,2348.5,2.49777]
[1725938146057,0.06438485,2348.6,2348.5,2.49777]
[1725938146284,0.10510704,2349.2,2348.5,2.49777]
[1725938146646,0.06436985,2349.1,2348.5,2.49777]
[1725938146984,0.06436985,2349.1,2348.6,0.249777]
[1725938147290,0.06436985,2349.1,2348.6,0.33492419]
[1725938147585,0.06436985,2349.1,2348.6,0.249777]
[1725938149744,0.06436985,2349.1,2348.5,2.2707]
[1725938150383,2.85531812,2348.9,2348.3,2.4983]
[1725938150683,0.10510704,2348.8,2348.0,2.4983]
[1725938150880,0.16938213,2348.8,2348.1,0.51005476]
[1725938151089,0.10510704,2348.8,2348.1,3.51005476]
[1725938151744,0.10510704,2348.8,2348.1,0.51005476]
[1725938152367,2.85531812,2348.5,2347.8,6.71169842]
[1725938152568,0.1692207,2348.4,2347.9,3.0]
[1725938152794,0.10510704,2348.4,2347.9,3.0]
[1725938152994,0.06410917,2348.3,2347.9,3.0]
[1725938153192,0.10510704,2348.5,2348.0,0.89827281]
[1725938154410,0.10510704,2348.5,2347.8,2.2703]
[1725938154581,0.06403668,2348.4,2347.8,2.2703]
[1725938154905,0.10510704,2348.5,2347.8,3.98371845]
[1725938155272,0.06387679,2348.4,2347.8,3.98371845]
[1725938155473,0.10510704,2348.5,2347.8,3.98371845]
[1725938155818,0.06387531,2348.4,2347.9,0.48765169]
[1725938156016,0.10510704,2348.5,2347.9,0.48765169]
[1725938156215,0.05961132,2348.3,2347.9,0.48765169]
[1725938156372,0.10510704,2348.5,2347.9,0.48765169]
[1725938156710,0.05961581,2348.4,2347.9,0.48765169]
[1725938157008,2.96042516,2348.5,2347.9,0.48765169]
[1725938157183,0.05961132,2348.3,2347.9,0.48765169]
[1725938157384,2.85531812,2348.5,2347.9,0.48765169]
[1725938157583,0.05960683,2348.2,2347.9,0.48765169]
[1725938157808,2.85531812,2348.5,2347.8,2.2703]
[1725938158006,0.05960235,2348.1,2347.8,2.2703]
[1725938158216,2.85531812,2348.5,2347.8,2.2703]
[1725938158405,0.05959786,2348.0,2347.8,3.98372776]
[1725938158585,0.10510704,2348.4,2347.8,3.23416436]
[1725938159411,0.10510704,2348.5,2347.8,3.23416436]
[1725938159611,0.05961132,2348.3,2347.8,3.23416436]
[1725938159807,0.10510704,2348.5,2347.8,3.23416436]
[1725938160010,0.05960831,2348.2,2347.8,3.23416436]
[1725938160222,2.3461,2348.3,2347.8,3.23416436]
[1725938160519,0.05917746,2348.1,2347.8,3.23416436]
[1725938160720,0.16428899,2348.2,2347.8,3.23416436]
[1725938160936,0.05917297,2348.0,2347.8,3.23416436]
[1725938161078,0.10510704,2348.2,2347.8,3.23416436]
[1725938161642,0.05917746,2348.1,2347.8,3.23416436]
[1725938161922,0.05917746,2348.1,2347.9,0.49472337]
[1725938162277,0.10510704,2348.2,2347.9,0.49472337]
[1725938162478,0.05917297,2348.0,2347.9,0.49472337]
[1725938162770,0.05905451,2348.0,2347.9,0.49472337]
[1725938163002,2.3461,2348.3,2347.9,0.49472337]
[1725938163187,0.05906635,2348.0,2347.9,0.49472337]
[1725938163387,2.3461,2348.3,2347.9,0.49472337]
[1725938163613,0.05901721,2348.0,2347.9,0.49472337]
[1725938163943,2.3461,2348.3,2347.9,0.49472337]
[1725938164103,0.05901721,2348.0,2347.9,0.49472337]
[1725938164298,2.3461,2348.3,2347.9,0.49472337]
[1725938164797,2.3461,2348.3,2347.8,2.35547692]
[1725938164798,2.3461,2348.3,2347.8,2.2703]
[1725938165235,0.10510704,2348.2,2347.8,2.2703]
[1725938165735,0.05901029,2348.1,2347.6,2.4882]
[1725938166235,0.10510704,2348.2,2347.6,2.4882]
[1725938166435,0.10510704,2348.2,2347.7,0.62012693]
[1725938166644,0.05900985,2348.1,2347.6,2.4882]
[1725938167271,0.10510704,2348.2,2347.4,2.3688]
[1725938167405,0.05899581,2348.0,2347.4,2.3688]
[1725938167601,0.10510704,2348.2,2347.4,2.3688]
[1725938167839,0.05899132,2347.9,2347.4,2.3688]
[1725938168135,0.10510704,2348.2,2347.5,0.53688]
[1725938168655,0.0590003,2348.1,2347.5,0.53688]
[1725938173041,0.10510704,2348.2,2347.5,0.53688]
[1725938173042,2.2538,2348.0,2347.5,0.53688]
[1725938173359,0.10510704,2347.9,2347.5,0.53688]
[1725938173564,0.0587848,2347.8,2347.5,0.53688]
[1725938173763,0.0587848,2347.8,2347.2,2.0]
[1725938173764,5.10911812,2347.7,2346.9,4.2926]
[1725938173967,0.16388286,2347.6,2346.9,2.2926]
[1725938174282,0.10510704,2347.6,2346.9,4.2926]
[1725938174486,0.10510704,2347.6,2347.0,0.42926]
[1725938179013,0.05843362,2347.5,2347.0,0.42926]
[1725938180298,0.10510704,2347.6,2347.0,0.42926]
[1725938180770,0.05843548,2347.5,2347.0,0.42926]
[1725938184996,0.10510704,2347.6,2347.0,0.42926]
[1725938188431,2.2538,2347.7,2347.2,2.3019]
[1725938188764,1.31920874,2348.1,2347.3,0.37063081]
[1725938188765,0.05804282,2347.5,2347.3,0.37063081]
[1725938188922,2.4486,2347.9,2347.3,0.37063081]
[1725938188923,0.05804917,2347.6,2347.3,0.37063081]
[1725938189261,2.4486,2347.9,2347.3,0.37063081]
[1725938189460,0.05804282,2347.5,2347.3,0.37063081]
[1725938189665,0.10510704,2347.8,2347.3,0.37063081]
[1725938189854,0.05804053,2347.4,2347.3,0.37063081]
[1725938190049,2.55370704,2347.9,2347.3,0.37063081]
[1725938190368,0.05616998,2347.4,2347.3,0.45582186]
[1725938190567,2.55370704,2347.9,2347.3,0.45582186]
[1725938190869,2.4486,2347.9,2347.3,0.45582186]
[1725938191027,0.05624579,2347.8,2347.4,0.55]
[1725938191223,2.4486,2347.9,2347.5,0.08518663]
[1725938191559,0.05631252,2347.7,2347.4,0.55]
[1725938191761,2.4486,2347.9,2347.4,0.55]
[1725938191923,0.05630802,2347.6,2347.4,0.55]
[1725938192122,2.4486,2347.9,2347.5,0.08518667]
[1725938192330,0.10510704,2348.1,2347.4,0.55]
[1725938192557,2.59530704,2348.1,2347.4,0.55]
[1725938192864,2.59530704,2348.1,2347.4,0.63518664]
[1725938193168,0.0563972,2348.0,2347.4,0.63518664]
[1725938193821,0.0563972,2348.0,2347.5,2.4618]
[1725938194021,2.4902,2348.3,2347.6,2.43755894]
[1725938194259,0.44502961,2348.7,2347.8,2.4618]
[1725938194260,0.05600011,2347.9,2347.8,2.4618]
[1725938194455,2.4902,2348.6,2347.8,2.4618]
[1725938194456,0.10510704,2348.5,2347.8,2.54696927]
[1725938194660,0.05609556,2347.9,2347.8,2.54696927]
[1725938194865,0.10510704,2348.5,2347.8,3.81650494]
[1725938195170,0.10510704,2348.5,2347.8,3.26650494]
[1725938195535,0.10510704,2348.5,2347.8,3.18133567]